bitfinex/quotes_SOLUSD_20251224
["timestamp","ask_amount","ask_price","bid_price","bid_amount"]
[1766609775588,2.82389968,122.72,122.69,8.86060905]
[1766609775759,3.53389968,122.72,122.69,8.15060905]
[1766609775964,3.53389968,122.72,122.7,0.71]
[1766609781998,2.51677982,122.72,122.7,0.71]
[1766609790699,0.71,122.72,122.7,0.71]
[1766609792791,1.80677982,122.73,122.7,0.71]
[1766609793388,2.51677982,122.73,122.7,0.71]
[1766609800723,1.80677982,122.72,122.7,0.71]
[1766609801007,9.95510337,122.73,122.7,0.71]
[1766609801197,0.7,122.72,122.7,0.71]
[1766609811911,8.14832355,122.73,122.7,0.71]
[1766609812227,8.82832355,122.73,122.7,0.71]
[1766609821941,8.82752011,122.74,122.71,0.72]
[1766609822545,0.68,122.73,122.71,0.72]
[1766609824555,0.68,122.73,122.69,8.15062352]
[1766609824847,0.68,122.73,122.7,0.72]
[1766609828556,8.8279954,122.73,122.7,0.72]
[1766609829854,0.68,122.73,122.7,0.72]
[1766609840863,8.8279833,122.73,122.7,0.72]
[1766609841056,0.69,122.72,122.7,0.72]
[1766609841244,0.69,122.73,122.7,0.72]
[1766609845253,8.83797892,122.73,122.7,0.72]
[1766609853372,0.69,122.73,122.7,0.72]
[1766609859374,8.83815427,122.73,122.7,0.72]
[1766609860475,0.66,122.73,122.7,0.72]
[1766609868577,8.14730324,122.74,122.7,0.72]
[1766609869182,8.86730324,122.74,122.7,0.72]
[1766609870179,0.72,122.73,122.7,0.72]
[1766609871579,0.72,122.73,122.69,10.97288682]
[1766609871580,0.72,122.72,122.68,31.31301888]
[1766609871773,0.72,122.72,122.68,11.15767296]
[1766609871973,0.72,122.72,122.69,0.72]
[1766609872564,8.86800347,122.73,122.69,0.72]
[1766609873383,8.14800347,122.73,122.7,0.72]
[1766609878559,8.86800347,122.73,122.7,0.72]
[1766609882388,16.0822178,122.71,122.65,0.2]
[1766609882573,10.43767296,122.67,122.63,1e-08]
[1766609882968,2.82227242,122.66,122.63,1e-08]
[1766609883273,3.26384072,122.66,122.63,1e-08]
[1766609883684,6.08611314,122.66,122.63,1e-08]
[1766609883879,3.26384072,122.66,122.64,0.72]
[1766609884200,3.855,122.68,122.64,0.72]
[1766609884389,16.30698085,122.67,122.64,0.72]
[1766609884769,8.15209767,122.67,122.64,0.72]
[1766609884970,10.9771556,122.66,122.64,0.72]
[1766609890696,21.95238518,122.66,122.63,1e-08]
[1766609891789,19.13011276,122.66,122.63,1e-08]
[1766609892193,21.95238518,122.66,122.63,1e-08]
[1766609893099,19.13011276,122.66,122.63,0.72000001]
[1766609893275,28.52765085,122.69,122.63,0.72000001]
[1766609893476,28.52765085,122.69,122.64,0.72]
[1766609893798,2.82227242,122.68,122.64,0.72]
[1766609894000,14.88,122.66,122.64,0.72]
[1766609894379,8.15195239,122.67,122.64,0.72]
[1766609894579,23.03195239,122.67,122.64,0.72]
[1766609896776,23.03195239,122.67,122.62,22.72252309]
[1766609897109,8.15152465,122.68,122.64,2.82227242]
[1766609897598,8.15152465,122.68,122.63,2.82227242]
[1766609897990,8.86152465,122.68,122.63,10.97665985]
[1766609898586,0.71,122.68,122.63,10.97665985]
[1766609898787,8.86075622,122.69,122.64,0.72]
[1766609899801,8.86075622,122.69,122.65,0.72]
[1766609900996,8.86075622,122.69,122.66,0.72]
[1766609901407,8.86015605,122.7,122.66,0.72]
[1766609901784,17.013739,122.7,122.66,0.72]
[1766609903893,0.71,122.72,122.67,2.82227242]
[1766609904081,8.85863102,122.72,122.68,0.72]
[1766609904286,32.05457439,122.72,122.68,0.72]
[1766609904509,8.85863102,122.72,122.68,0.72]
[1766609906004,8.85863102,122.72,122.69,0.72]
[1766609907308,0.71,122.71,122.67,0.72]
[1766609907507,0.71,122.71,122.68,0.72]
[1766609911808,8.85931015,122.71,122.68,0.72]
[1766609921226,0.66,122.7,122.68,0.72]
[1766609924923,8.14931015,122.71,122.68,0.72]
[1766609925134,8.80931015,122.71,122.68,0.72]
[1766609930756,8.14931015,122.71,122.68,0.72]
[1766609950068,8.85931015,122.71,122.68,0.72]
[1766609967283,0.71,122.71,122.68,0.72]
[1766609988696,8.14983209,122.71,122.66,8.15250978]
[1766609988898,0.67,122.7,122.67,0.65]
[1766609993313,2.82309928,122.72,122.68,0.65]
[1766609993510,0.67,122.71,122.68,0.65]
[1766609995028,0.67,122.71,122.68,8.80094139]
[1766610000785,0.67,122.71,122.68,0.65]
[1766610001030,0.67,122.75,122.71,0.65]
[1766610001206,0.67,122.76,122.72,0.65]
[1766610002611,8.81600893,122.76,122.72,0.65]
[1766610003016,8.14600893,122.76,122.72,0.65]
[1766610003334,0.67,122.75,122.72,0.65]
[1766610004540,0.67,122.78,122.73,3.47309928]
[1766610004741,0.67,122.78,122.74,3.47309928]
[1766610004896,0.67,122.78,122.74,0.65]
[1766610007203,0.67,122.78,122.75,0.65]
[1766610010915,0.67,122.78,122.76,0.66]
[1766610013530,8.14344249,122.8,122.76,8.14596454]
[1766610013736,0.72,122.81,122.78,0.66]
[1766610015414,0.72,122.81,122.78,8.80463143]
[1766610016934,8.34230496,122.82,122.78,8.14463143]
[1766610017248,9.06230496,122.82,122.79,0.66]
[1766610017442,0.72,122.81,122.79,0.66]
[1766610018423,0.72,122.81,122.78,8.80463143]
[1766610024022,0.92,122.82,122.79,0.66]
[1766610025533,0.92,122.82,122.79,8.80341758]
[1766610026836,0.92,122.82,122.79,23.68341758]
[1766610029330,0.92,122.82,122.8,0.66]
[1766610037043,0.2,122.82,122.81,0.66]
[1766610037440,0.2,122.84,122.82,0.67]
[1766610038149,1.80357194,122.83,122.78,83.53079407]
[1766610038348,0.7,122.81,122.79,8.14371543]
[1766610038657,0.7,122.82,122.79,8.81371543]
[1766610046472,0.92,122.84,122.81,1.80357194]
[1766610046767,0.92,122.84,122.79,28.50367959]
[1766610046768,0.72,122.83,122.8,15.54]
[1766610046947,0.72,122.82,122.78,8.82437593]
[1766610047149,0.72,122.82,122.79,14.86]
[1766610047354,0.72,122.82,122.79,15.54]
[1766610048559,0.72,122.82,122.79,23.68383068]
[1766610051159,0.72,122.83,122.8,0.68]
[1766610051359,0.2,122.84,122.8,0.68]
[1766610051570,0.92,122.84,122.8,0.68]
[1766610054872,0.92,122.84,122.81,0.68]
[1766610058453,0.2,122.84,122.82,0.68]
[1766610059171,0.92,122.84,122.82,0.68]
[1766610060068,0.92,122.84,122.81,8.82216048]
[1766610060452,0.2,122.84,122.83,0.68]
[1766610060855,0.1,122.86,122.83,1.80357194]
[1766610061062,0.1,122.87,122.84,1.80357194]
[1766610061264,0.1,122.87,122.85,0.68]
[1766610062959,0.82,122.87,122.85,0.68]
[1766610065072,0.72,122.86,122.83,23.00099865]
[1766610065283,0.72,122.86,122.83,23.68099865]
[1766610066467,0.72,122.85,122.83,8.82099865]
[1766610066855,0.72,122.86,122.83,8.82099865]
[1766610069381,0.72,122.86,122.83,8.82130672]
[1766610072459,0.72,122.86,122.84,0.67]
[1766610074174,0.72,122.86,122.83,8.14130672]
[1766610075193,0.72,122.86,122.83,8.81130672]
[1766610077297,0.72,122.86,122.83,0.67]
[1766610077486,2.52357194,122.86,122.83,0.67]
[1766610077668,22.96903125,122.86,122.83,0.67]
[1766610077868,0.71,122.85,122.83,0.67]
[1766610078370,0.71,122.85,122.82,0.67]
[1766610078568,22.95903125,122.85,122.82,0.67]
[1766610078876,22.95903125,122.85,122.81,23.67246377]
[1766610078877,24.05260319,122.85,122.81,23.67246377]
[1766610079086,24.76260319,122.85,122.82,0.67]
[1766610079463,0.71,122.84,122.82,0.67]
[1766610080267,22.24903125,122.85,122.82,0.67]
[1766610080469,22.95903125,122.85,122.82,0.67]
[1766610095492,22.95903125,122.85,122.82,8.14189664]
[1766610095700,0.71,122.86,122.83,0.67]
[1766610095891,18.38722669,122.86,122.83,0.67]
[1766610097782,18.38722669,122.86,122.83,8.81130194]
[1766610103628,18.38722669,122.86,122.83,0.67]
[1766610104505,21.20445338,122.86,122.83,0.67]
[1766610104892,18.38722669,122.86,122.83,0.67]
[1766610108716,28.63390663,122.86,122.83,0.67]
[1766610108906,29.30390663,122.86,122.83,0.67]
[1766610109607,0.67,122.85,122.83,0.67]
[1766610115024,25.81667994,122.86,122.83,0.67]
[1766610115224,26.48667994,122.86,122.83,0.67]
[1766610121029,18.34722669,122.86,122.83,0.67]
[1766610121232,0.77,122.87,122.84,0.7]
[1766610121625,0.1,122.87,122.85,0.7]
[1766610138953,0.1,122.87,122.84,23.00059648]
[1766610139132,0.82,122.87,122.84,23.69059648]
[1766610139830,0.82,122.87,122.85,0.69]
[1766610153870,0.82,122.87,122.84,23.00059648]
[1766610154075,0.82,122.87,122.82,84.65682872]
[1766610154076,0.72,122.85,122.82,63.19]
[1766610154569,0.72,122.85,122.82,0.69]
[1766610154772,0.72,122.85,122.82,8.8319881]
[1766610158074,2.52222347,122.85,122.82,8.8319881]
[1766610159974,0.72,122.85,122.82,8.8319881]
[1766610161959,0.72,122.85,122.81,0.65]
[1766610161960,0.69,122.84,122.81,0.65]
[1766610162162,0.69,122.85,122.81,0.65]
[1766610162457,25.12892305,122.85,122.81,0.65]
[1766610163366,0.69,122.85,122.82,8.79199641]
[1766610165275,25.12892305,122.85,122.82,8.79199641]
[1766610166964,0.69,122.85,122.82,8.79199641]
[1766610170480,0.69,122.85,122.82,0.65]
[1766610170655,25.12892305,122.85,122.82,0.65]
[1766610173282,24.43892305,122.85,122.82,0.65]
[1766610173485,24.43892305,122.85,122.8,19.28082588]
[1766610173486,0.67,122.83,122.8,19.28082588]
[1766610174277,25.11290544,122.83,122.8,19.28082588]
[1766610175674,0.67,122.83,122.81,0.7]
[1766610176260,25.11091409,122.84,122.81,0.7]
[1766610177162,25.11091409,122.84,122.81,8.84226597]
[1766610177363,24.44091409,122.84,122.81,8.84226597]
[1766610177561,0.67,122.83,122.81,8.84226597]
[1766610181291,24.44091409,122.84,122.81,8.84226597]
[1766610181492,0.67,122.85,122.82,0.7]
[1766610181700,25.10892305,122.85,122.82,0.7]
[1766610181904,0.1,122.87,122.84,0.7]
[1766610182093,0.1,122.89,122.87,0.7]
[1766610182276,0.1,122.89,122.88,0.7]
[1766610182598,0.1,122.9,122.89,0.7]
[1766610183275,0.1,122.91,122.89,1.80222347]
[1766610183474,0.1,122.91,122.9,0.7]
[1766610183681,0.1,122.91,122.89,10.63904559]
[1766610184278,0.1,122.91,122.89,8.83682212]
[1766610184776,0.1,122.91,122.89,0.7]
[1766610186504,0.1,122.91,122.89,2.50222347]
[1766610187702,0.1,122.91,122.89,0.7]
[1766610187891,0.78,122.91,122.89,2.50222347]
[1766610188583,0.78,122.91,122.88,10.63005391]
[1766610188893,0.78,122.91,122.88,2.49222347]
[1766610191284,0.78,122.91,122.88,10.63020047]
[1766610194413,0.78,122.91,122.89,1.80222347]
[1766610194908,0.1,122.91,122.9,0.69]
[1766610195596,0.1,122.91,122.89,2.49222347]
[1766610196507,0.1,122.91,122.89,10.62909909]
[1766610197302,0.1,122.91,122.9,1.80222347]
[1766610197511,0.1,122.91,122.9,2.49222347]
[1766610199299,0.1,122.91,122.9,10.62891997]
[1766610199505,0.78,122.93,122.9,10.62891997]
[1766610200208,0.78,122.93,122.9,0.69]
[1766610204487,0.1,122.93,122.91,0.69]
[1766610205212,0.2,122.95,122.94,0.69]
[1766610206010,0.2,122.95,122.93,0.69]
[1766610208614,0.1,122.96,122.94,2.46222347]
[1766610208826,0.1,122.96,122.94,0.66]
[1766610209495,0.1,122.96,122.94,2.46222347]
[1766610209897,0.1,122.96,122.94,11.6051246]
[1766610210315,0.1,122.96,122.94,3.47110914]
[1766610211218,0.1,122.96,122.94,11.60506499]
[1766610212646,3.53110914,122.95,122.91,0.66]
[1766610212927,0.72,122.95,122.92,0.66]
[1766610214727,0.72,122.94,122.92,0.66]
[1766610216117,0.72,122.94,122.91,0.66]
[1766610226817,0.72,122.94,122.91,8.79596806]
[1766610230639,0.72,122.94,122.9,33.43419166]
[1766610230824,0.68,122.93,122.91,0.7]
[1766610231914,0.68,122.93,122.9,34.13419166]
[1766610233242,0.68,122.93,122.9,36.9453008]
[1766610237455,0.68,122.93,122.91,0.7]
[1766610241551,0.68,122.95,122.92,0.7]
[1766610241844,0.78,122.96,122.93,3.51110914]
[1766610242062,0.1,122.96,122.94,3.51110914]
[1766610242650,0.78,122.96,122.93,3.51110914]
[1766610243922,0.78,122.96,122.93,11.64568023]
[1766610245051,0.1,122.96,122.93,10.94568023]
[1766610245234,0.1,122.96,122.94,0.7]
[1766610247362,0.8,122.96,122.94,0.7]
[1766610248454,0.1,122.96,122.94,0.7]
[1766610248833,0.1,122.96,122.94,8.8339645]
[1766610252132,0.8,122.96,122.94,8.8339645]
[1766610253051,0.8,122.96,122.94,0.7]
[1766610254451,0.1,122.96,122.94,0.7]
[1766610254655,0.1,122.96,122.95,0.67]
[1766610257053,0.1,122.96,122.94,8.1339572]
[1766610257260,0.8,122.96,122.93,0.67]
[1766610257447,0.8,122.96,122.93,8.80467759]
[1766610258853,0.8,122.96,122.92,23.66520408]
[1766610259038,2.91110914,122.96,122.92,23.66520408]
[1766610259238,0.7,122.95,122.92,23.66520408]
[1766610269571,0.7,122.95,122.92,26.47631322]
[1766610270170,0.7,122.95,122.92,23.66520408]
[1766610270369,0.7,122.95,122.92,26.47631322]
[1766610270869,0.7,122.95,122.93,0.67]
[1766610271980,0.7,122.95,122.92,24.79495917]
[1766610272184,0.7,122.95,122.93,0.67]
[1766610275771,0.7,122.95,122.92,24.79495917]
[1766610275772,0.7,122.95,122.92,17.32975509]
[1766610275967,0.7,122.95,122.92,15.53]
[1766610276371,0.7,122.95,122.91,2.46975509]
[1766610276573,0.7,122.95,122.91,0.67]
[1766610278358,8.8338842,122.95,122.91,0.67]
[1766610278563,0.68,122.94,122.91,0.67]
[1766610280376,0.68,122.94,122.9,33.43408151]
[1766610280559,0.68,122.94,122.9,35.9038366]
[1766610283279,0.68,122.94,122.91,0.72]
[1766610297789,0.68,122.94,122.9,35.2338366]
[1766610297790,0.71,122.93,122.9,26.01767296]
[1766610298493,0.71,122.93,122.9,25.29767296]
[1766610298678,0.71,122.93,122.91,0.72]
[1766610300693,0.71,122.93,122.9,11.15767296]
[1766610300995,0.71,122.93,122.9,12.95742805]
[1766610301196,0.71,122.93,122.9,21.09405667]
[1766610302779,0.71,122.93,122.9,20.37405667]
[1766610303271,0.71,122.93,122.9,21.09405667]
[1766610303895,0.71,122.93,122.9,19.29430158]
[1766610305174,0.71,122.93,122.9,18.57430158]
[1766610305378,0.71,122.93,122.91,0.72]
[1766610306699,0.71,122.95,122.92,0.72]
[1766610310585,0.1,122.96,122.93,0.67]
[1766610310808,0.71,122.95,122.93,0.67]
[1766610311790,0.71,122.95,122.92,8.80522924]
[1766610312816,8.23275836,122.96,122.93,0.67]
[1766610313114,0.71,122.95,122.93,0.67]
[1766610342243,8.84369037,122.95,122.93,0.67]
[1766610345443,8.84369037,122.95,122.92,0.66]
[1766610346141,11.65582735,122.95,122.92,0.66]
[1766610347046,8.84369037,122.95,122.92,0.66]
[1766610364361,0.71,122.94,122.9,10.43767296]
[1766610364531,0.71,122.93,122.9,11.09767296]
[1766610365534,0.71,122.93,122.9,10.43767296]
[1766610365735,0.71,122.93,122.91,0.66]
[1766610368362,8.8447896,122.93,122.89,10.94937074]
[1766610368568,0.67,122.92,122.89,8.79723376]
[1766610369067,0.67,122.92,122.9,0.66]
[1766610371471,0.67,122.92,122.88,25.95767296]
[1766610371472,0.67,122.91,122.88,25.95767296]
[1766610372355,0.67,122.91,122.88,0.66]
[1766610373666,8.8060383,122.91,122.88,0.66]
[1766610373863,0.67,122.9,122.87,0.66]
[1766610374851,8.8070286,122.9,122.87,0.66]
[1766610375056,0.67,122.88,122.86,0.66]
[1766610376257,0.67,122.89,122.86,0.66]
[1766610376962,0.67,122.89,122.86,3.47213698]
[1766610382272,0.67,122.89,122.87,0.66]
[1766610386081,8.80621983,122.91,122.87,10.95072066]
[1766610386271,0.67,122.91,122.88,0.66]
[1766610386669,11.62145367,122.91,122.88,0.66]
[1766610386873,0.67,122.91,122.88,0.66]
[1766610389570,8.80572231,122.92,122.89,0.66]
[1766610389780,0.67,122.92,122.89,0.66]
[1766610403795,8.80552932,122.92,122.89,0.66]
[1766610404428,8.80552932,122.92,122.89,2.4607496]
[1766610408624,8.80552932,122.92,122.89,0.66]
[1766610422438,0.67,122.9,122.87,0.66]
[1766610425419,8.80670052,122.9,122.87,0.66]
[1766610429450,8.80670052,122.9,122.87,2.4607496]
[1766610430057,0.67,122.9,122.87,2.4607496]
[1766610430755,22.99836885,122.91,122.87,1.8007496]
[1766610430936,0.69,122.91,122.88,0.69]
[1766610435262,25.11698367,122.91,122.88,0.69]
[1766610455277,24.42698367,122.91,122.88,0.69]
[1766610455484,24.42698367,122.91,122.89,0.69]
[1766610455882,25.11698367,122.91,122.89,0.69]
[1766610458792,25.11698367,122.91,122.88,0.72]
[1766610459899,25.11698367,122.91,122.87,10.95287558]
[1766610459900,0.68,122.9,122.87,0.72]
[1766610460582,0.68,122.9,122.88,0.72]
[1766610461795,25.10698367,122.91,122.88,0.72]
[1766610464498,33.24306623,122.91,122.88,0.72]
[1766610467003,25.10698367,122.91,122.88,0.72]
[1766610468103,33.24306037,122.91,122.88,0.72]
[1766610468493,8.8160767,122.91,122.88,0.72]
[1766610469205,26.49042312,122.91,122.88,0.72]
[1766610471014,0.68,122.9,122.86,15.58]
[1766610471315,0.68,122.89,122.87,10.43767296]
[1766610471994,18.35434642,122.89,122.87,10.43767296]
[1766610473510,26.491803,122.89,122.87,10.43767296]
[1766610473891,28.62614942,122.89,122.87,10.43767296]
[1766610474223,11.63254282,122.88,122.85,0.72]
[1766610474422,33.2511483,122.88,122.85,0.72]
[1766610475107,8.8181964,122.88,122.85,0.72]
[1766610475307,0.68,122.87,122.85,0.72]
[1766610475505,23.67869051,122.87,122.84,0.72]
[1766610476409,22.99869051,122.87,122.84,0.72]
[1766610476613,0.68,122.86,122.84,0.72]
[1766610477004,0.68,122.86,122.83,11.15767296]
[1766610477410,0.68,122.86,122.83,13.97201938]
[1766610477626,0.68,122.86,122.84,0.72]
[1766610478218,22.99869051,122.87,122.84,0.72]
[1766610478517,23.67869051,122.87,122.84,0.72]
[1766610478718,0.68,122.86,122.84,0.72]
[1766610478907,0.68,122.86,122.83,13.25201938]
[1766610479109,0.68,122.86,122.83,11.15767296]
[1766610479295,23.67869051,122.86,122.83,11.15767296]
[1766610479495,0.68,122.86,122.84,0.72]
[1766610482518,0.68,122.85,122.81,8.8581964]
[1766610482718,0.68,122.84,122.81,8.14252563]
[1766610482897,0.68,122.84,122.82,0.72]
[1766610483099,0.68,122.84,122.81,8.86252563]
[1766610484219,0.68,122.84,122.81,8.14252563]
[1766610484409,0.68,122.84,122.81,8.86252563]
[1766610487522,0.68,122.84,122.82,0.68]
[1766610489809,25.08892305,122.85,122.82,0.68]
[1766610490008,14.86,122.88,122.85,0.68]
[1766610490009,0.65,122.88,122.85,0.68]
[1766610490726,0.65,122.88,122.84,0.68]
[1766610491020,2.81434642,122.88,122.84,0.68]
[1766610491323,2.81434642,122.88,122.83,27.24729832]
[1766610491324,28.13100142,122.89,122.83,0.68]
[1766610491620,27.24928838,122.88,122.83,0.68]
[1766610491921,35.3876708,122.88,122.84,0.68]
[1766610492130,2.81434642,122.87,122.83,0.68]
[1766610493321,0.57,122.86,122.83,0.68]
[1766610495325,8.70942652,122.86,122.83,0.68]
[1766610499235,8.70942652,122.86,122.83,3.49434642]
[1766610499434,0.57,122.87,122.84,0.68]
[1766610500831,10.95258784,122.88,122.84,0.68]
[1766610501033,0.57,122.87,122.84,0.68]
[1766610501637,3.38434642,122.87,122.84,0.68]
[1766610502233,11.52361008,122.87,122.84,0.68]
[1766610502720,8.70926366,122.87,122.84,0.68]
[1766610505238,11.52361008,122.87,122.84,0.68]
[1766610506115,10.95361008,122.87,122.82,42.10928838]
[1766610506312,0.57,122.86,122.83,0.68]
[1766610509543,8.70934801,122.86,122.83,0.68]
[1766610510846,8.13934801,122.86,122.83,0.68]
[1766610511049,8.70934801,122.86,122.83,0.68]
[1766610511524,0.57,122.85,122.81,0.68]
[1766610511727,0.07,122.85,122.81,0.68]
[1766610516247,0.07,122.85,122.81,1.80311814]
[1766610516552,0.07,122.85,122.82,0.68]
[1766610517137,9.51246615,122.86,122.82,0.68]
[1766610518449,33.9513892,122.86,122.82,0.68]
[1766610518651,9.51246615,122.86,122.82,0.68]
[1766610520850,33.9513892,122.86,122.82,0.68]
[1766610522457,9.51246615,122.86,122.82,0.68]
[1766610526552,33.9513892,122.86,122.82,0.68]
[1766610527257,9.51246615,122.86,122.82,0.68]
[1766610528765,33.9513892,122.86,122.82,0.68]
[1766610529959,9.51246615,122.86,122.82,0.68]
[1766610537863,9.94331952,122.85,122.82,0.68]
[1766610538070,8.14020138,122.85,122.82,0.68]
[1766610538570,9.94331952,122.85,122.8,25.49767296]
[1766610538772,34.38423361,122.85,122.81,0.72]
[1766610541046,30.29333987,122.85,122.81,0.72]
[1766610541450,24.44290544,122.84,122.81,0.72]
[1766610541860,26.24602358,122.84,122.8,15.78]
[1766610542060,1.80311814,122.83,122.8,0.92]
[1766610542447,26.24602358,122.84,122.8,0.92]
[1766610542779,1.80311814,122.83,122.8,0.2]
[1766610543283,1.80311814,122.81,122.79,1e-08]
[1766610543571,1.80311814,122.8,122.77,0.2]
[1766610543783,1.80311814,122.79,122.77,0.2]
[1766610544278,5.06350041,122.8,122.77,0.2]
[1766610544671,8.14398566,122.79,122.77,0.2]
[1766610545574,9.9471038,122.79,122.77,0.2]
[1766610545774,9.9471038,122.79,122.77,1e-08]
[1766610546075,30.30706796,122.79,122.77,1e-08]
[1766610546258,1.80311814,122.78,122.76,1e-08]
[1766610546642,9.94827769,122.78,122.76,1e-08]
[1766610548654,3.26091387,122.77,122.76,1e-08]
[1766610548978,11.40622624,122.77,122.76,1e-08]
[1766610550956,13.20934438,122.77,122.76,1e-08]
[1766610551158,11.40622624,122.77,122.76,1e-08]
[1766610551558,13.20934438,122.77,122.76,1e-08]
[1766610553767,13.20934438,122.77,122.73,0.89]
[1766610553982,1.80311814,122.76,122.73,0.89]
[1766610554389,3.26117973,122.75,122.73,0.89]
[1766610555375,9.94948017,122.76,122.73,0.89]
[1766610555594,9.94948017,122.76,122.73,0.2]
[1766610555754,9.94948017,122.76,122.74,0.69]
[1766610556178,8.14636203,122.76,122.74,0.69]
[1766610557390,8.14564362,122.77,122.74,0.69]
[1766610560874,9.94876176,122.77,122.74,0.69]
[1766610568885,8.14564362,122.77,122.74,0.69]
[1766610573266,9.94876176,122.77,122.74,0.69]
[1766610576070,10.96681406,122.77,122.74,0.69]
[1766610578002,8.14564362,122.77,122.74,0.69]
[1766610584181,28.50892455,122.77,122.74,0.66]
[1766610584582,36.85740687,122.77,122.74,0.66]
[1766610587300,8.34848232,122.77,122.74,11.09767296]
[1766610587505,104.57,122.8,122.76,2.82117044]
[1766610587713,112.71367932,122.8,122.77,0.66]
[1766610588899,0.67,122.79,122.77,0.66]
[1766610589090,112.04367932,122.8,122.77,0.66]
[1766610589292,112.71367932,122.8,122.77,0.66]
[1766610591204,0.67,122.79,122.77,0.66]
[1766610591878,8.81409955,122.79,122.77,0.66]
[1766610593607,8.14409955,122.79,122.77,0.66]
[1766610593795,8.81349787,122.8,122.77,0.66]
[1766610596612,0.67,122.8,122.77,0.66]
[1766610597320,8.81335975,122.8,122.77,0.66]
[1766610597819,0.67,122.8,122.77,0.66]
[1766610601828,8.81338317,122.8,122.77,0.66]
[1766610614338,8.80284888,122.81,122.78,0.67]
[1766610624927,11.62401932,122.81,122.78,0.67]
[1766610625530,8.80341148,122.8,122.78,0.67]
[1766610625727,8.80341148,122.8,122.77,0.67]
[1766610625728,0.66,122.79,122.77,0.67]
[1766610626232,8.80341148,122.8,122.77,0.67]
[1766610628651,8.14341148,122.8,122.74,62.5]
[1766610628945,0.66,122.76,122.74,0.67]
[1766610634548,0.66,122.76,122.73,0.2]
[1766610634858,0.66,122.75,122.73,0.2]
[1766610635021,2.82117044,122.77,122.73,0.87]
[1766610635220,0.66,122.76,122.73,0.87]
[1766610637553,8.80620802,122.76,122.73,0.87]
[1766610639526,10.61198162,122.76,122.73,0.87]
[1766610642854,0.67,122.75,122.73,0.2]
[1766610643029,2.4757736,122.75,122.73,0.2]
[1766610644429,0.67,122.75,122.73,0.2]
[1766610645458,8.81678555,122.75,122.73,0.2]
[1766610645754,0.67,122.74,122.73,0.2]
[1766610648252,8.14678555,122.75,122.73,0.2]
[1766610648450,8.81678555,122.75,122.73,0.2]
[1766610651364,8.81678555,122.75,122.73,0.86]
[1766610654165,0.67,122.75,122.73,0.86]
[1766610662463,10.62206968,122.76,122.73,0.86]
[1766610662956,9.95206968,122.76,122.73,0.86]
[1766610663162,0.67,122.75,122.73,0.86]
[1766610664265,0.67,122.77,122.74,0.66]
[1766610664675,18.78626574,122.78,122.75,0.66]
[1766610664842,0.67,122.8,122.77,0.66]
[1766610665450,18.58040699,122.81,122.78,0.66]
[1766610665451,8.14273403,122.81,122.78,0.66]
[1766610665651,8.81273403,122.81,122.78,0.66]
[1766610671771,0.72,122.8,122.78,0.66]
[1766610677966,8.14273403,122.81,122.73,62.7]
[1766610677967,0.72,122.78,122.74,0.71]
[1766610678379,0.72,122.78,122.74,2.5157736]